bitfinex-derivatives/quotes_BNBF0:USTF0_20250401
["timestamp","ask_amount","ask_price","bid_price","bid_amount"]
[1743534359789,0.913,608.27,607.51,1.22645171]
[1743534360191,1.19921834,608.27,607.51,1.22645171]
[1743534361693,0.94,608.26,607.51,1.22645171]
[1743534363594,1.164,608.25,607.51,1.22645171]
[1743534364696,1.164,608.25,607.41,0.32926688]
[1743534364697,1.164,608.25,607.54,1.22645171]
[1743534366795,1.164,608.25,607.5,1.22645171]
[1743534369202,1.164,608.25,607.58,1.22645171]
[1743534371002,1.164,608.25,607.67,1.22645171]
[1743534372901,1.164,608.25,607.75,1.22645171]
[1743534375304,1.164,608.25,607.72,1.22645171]
[1743534377306,1.164,608.25,607.58,1.22645171]
[1743534377506,1.164,608.25,607.58,1.55562646]
[1743534379207,1.164,608.25,607.58,0.32917475]
[1743534382611,0.847,608.24,607.58,0.32917475]
[1743534389014,1.04,608.23,607.58,0.32917475]
[1743534394218,0.786,608.22,607.58,0.32917475]
[1743534398723,0.786,608.22,607.62,1.22645171]
[1743534398923,0.786,608.22,607.62,1.55560479]
[1743534400924,0.786,608.22,607.75,1.22645171]
[1743534402426,0.786,608.22,607.79,1.22645171]
[1743534404524,0.786,608.22,607.62,0.32915308]
[1743534404525,0.786,608.22,607.84,1.22645171]
[1743534406028,0.786,608.22,607.62,0.32915308]
[1743534406029,0.786,608.22,607.76,1.22645171]
[1743534406326,1.164,608.25,607.76,1.22645171]
[1743534407928,1.164,608.25,607.73,1.22645171]
[1743534409431,1.222,608.24,607.72,1.22645171]
[1743534411928,1.222,608.24,607.64,1.22645171]
[1743534415929,1.222,608.24,607.65,1.22645171]
[1743534417736,1.222,608.24,607.62,0.32915308]
[1743534421230,1.141,608.23,607.62,0.32915308]
[1743534423033,1.06,608.22,607.62,0.32915308]
[1743534424235,0.28620186,608.39,607.62,0.32915308]
[1743534425536,0.28620186,608.39,607.64,1.22645171]
[1743534425842,2.50907365,609.72,607.64,1.22645171]
[1743534426036,0.3021644,608.85,607.64,1.22645171]
[1743534426236,0.28610539,608.39,607.64,1.22645171]
[1743534426741,0.32849352,608.84,607.64,1.22645171]
[1743534426942,0.30217681,608.83,607.64,1.22645171]
[1743534427142,0.32850431,608.82,607.64,1.22645171]
[1743534427342,0.30217681,608.81,607.64,1.22645171]
[1743534427543,0.32851511,608.8,607.64,1.22645171]
[1743534427743,0.30217681,608.79,607.64,1.22645171]
[1743534427936,0.30217681,608.79,607.62,0.32915308]
[1743534428444,0.3285259,608.78,607.62,0.32915308]
[1743534428637,0.30217681,608.77,607.62,0.32915308]
[1743534428838,0.32853669,608.76,607.62,0.32915308]
[1743534429036,0.30217681,608.75,607.62,0.32915308]
[1743534429241,0.32854749,608.74,607.62,0.32915308]
[1743534429442,0.30217681,608.73,607.62,0.32915308]
[1743534429744,1.54055828,608.72,607.62,0.32915308]
[1743534430044,2.92274049,608.71,607.62,0.32915308]
[1743534430245,0.63074589,608.7,607.62,0.32915308]
[1743534430540,0.30217681,608.69,607.62,0.32915308]
[1743534430844,0.30218404,608.68,607.62,0.32915308]
[1743534431048,0.30218404,608.67,607.62,0.32915308]
[1743534431240,0.30218404,608.69,607.62,0.32915308]
[1743534431443,0.30218404,608.68,607.62,0.32915308]
[1743534431643,0.30218404,608.69,607.62,0.32915308]
[1743534431839,0.30218404,608.68,607.62,0.32915308]
[1743534432240,0.28615244,608.68,607.62,0.32915308]
[1743534432443,0.30218339,608.67,607.62,0.32915308]
[1743534433946,0.28615244,608.68,607.62,0.32915308]
[1743534433947,0.3021868,608.66,607.62,0.32915308]
[1743534434148,0.3021868,608.65,607.62,0.32915308]
[1743534434344,0.3021868,608.67,607.62,0.32915308]
[1743534434542,0.28615244,608.68,607.62,0.32915308]
[1743534434847,0.30218657,608.67,607.62,0.32915308]
[1743534435048,0.30218657,608.69,607.62,0.32915308]
[1743534435242,0.28615479,608.67,607.62,0.32915308]
[1743534435446,0.30218657,608.66,607.62,0.32915308]
[1743534436243,0.32859607,608.65,607.62,0.32915308]
[1743534436549,0.30218657,608.64,607.62,0.32915308]
[1743534436845,0.32860687,608.63,607.62,0.32915308]
[1743534437048,0.30218657,608.62,607.62,0.32915308]
[1743534437244,0.32861766,608.61,607.62,0.32915308]
[1743534437447,0.30218657,608.6,607.62,0.32915308]
[1743534437649,0.32862846,608.59,607.62,0.32915308]
[1743534437949,0.30218657,608.58,607.62,0.32915308]
[1743534438448,0.32863926,608.57,607.62,0.32915308]
[1743534438650,0.30218657,608.56,607.62,0.32915308]
[1743534439144,0.32863926,608.57,607.62,0.32915308]
[1743534439342,0.30221133,608.56,607.62,0.32915308]
[1743534441048,0.28618421,608.55,607.62,0.32915308]
[1743534441248,0.30221133,608.54,607.62,0.32915308]
[1743534441453,0.28618421,608.55,607.62,0.32915308]
[1743534443849,0.32863926,608.57,607.62,0.32915308]
[1743534444152,0.28618656,608.54,607.62,0.32915308]
[1743534446353,1.11,608.53,607.62,0.32915308]
[1743534452155,1.059,608.52,607.62,0.32915308]
[1743534453250,0.28619362,608.51,607.62,0.32915308]
[1743534454056,1.125,608.5,607.62,0.32915308]
[1743534456153,0.28615479,608.49,607.62,0.32915308]
[1743534458861,1.125,608.5,607.62,0.32915308]
[1743534459057,0.2861595,608.48,607.62,0.32915308]
[1743534461861,1.125,608.5,607.62,0.32915308]
[1743534462163,1.41114538,608.5,607.62,0.32915308]
[1743534464966,1.125,608.5,607.62,0.32915308]
[1743534465168,1.41113597,608.5,607.62,0.32915308]
[1743534467971,1.125,608.5,607.62,0.32915308]
[1743534471064,1.052,608.49,607.62,0.32915308]
[1743534471569,0.759,608.48,607.62,0.32915308]
[1743534474268,0.28616538,608.47,607.62,0.32915308]
[1743534476174,0.971,608.46,607.62,0.32915308]
[1743534476874,1.019,608.45,607.62,0.32915308]
[1743534477276,1.30517127,608.45,607.62,0.32915308]
[1743534479870,1.019,608.45,607.62,0.32915308]
[1743534480073,0.28616891,608.44,607.62,0.32915308]
[1743534482778,1.019,608.45,607.62,0.32915308]
[1743534484181,1.019,608.45,607.67,1.22645171]
[1743534488078,1.019,608.45,607.62,0.32915308]
[1743534488079,1.019,608.45,607.65,1.22645171]
[1743534489982,1.019,608.45,607.67,1.22645171]
[1743534492185,0.28614303,608.44,607.67,1.22645171]
[1743534494892,0.28614303,608.44,607.62,0.32915308]
[1743534494893,1.019,608.45,607.68,1.22645171]
[1743534495087,0.28614538,608.43,607.68,1.22645171]
[1743534498096,0.28614538,608.43,607.69,1.22645171]
[1743534498496,1.206,608.42,607.69,1.22645171]
[1743534499696,1.206,608.42,607.62,0.32915308]
[1743534500997,0.28619362,608.41,607.62,0.32915308]
[1743534503496,1.057,608.4,607.62,0.32915308]
[1743534503699,1.804,608.4,607.62,0.32915308]
[1743534504094,0.28620304,608.39,607.62,0.32915308]
[1743534506704,1.804,608.4,607.62,0.32915308]
[1743534507100,0.28619127,608.38,607.62,0.32915308]
[1743534509801,1.804,608.4,607.62,0.32915308]
[1743534510203,0.28620422,608.37,607.62,0.32915308]
[1743534515813,1.057,608.4,607.62,0.32915308]
[1743534516211,0.28623011,608.39,607.62,0.32915308]
[1743534518908,1.057,608.4,607.62,0.32915308]
[1743534519107,1.30022069,608.38,607.62,0.32915308]
[1743534519714,0.86,608.37,607.62,0.32915308]
[1743534522415,0.28621481,608.36,607.62,0.32915308]
[1743534524917,1.058,608.35,607.62,0.32915308]
[1743534525116,1.34422305,608.35,607.62,0.32915308]
[1743534527821,1.058,608.35,607.62,0.32915308]
[1743534528214,0.28623717,608.34,607.62,0.32915308]
[1743534530825,1.058,608.35,607.62,0.32915308]
[1743534531119,0.28623482,608.33,607.62,0.32915308]
[1743534532622,1.30623482,608.33,607.62,0.32915308]
[1743534533825,1.02,608.33,607.62,0.32915308]
[1743534534424,0.28625483,608.32,607.62,0.32915308]
[1743534536829,1.02,608.33,607.62,0.32915308]
[1743534537125,0.28625012,608.31,607.62,0.32915308]
[1743534540025,1.02,608.33,607.62,0.32915308]
[1743534540224,0.28624424,608.3,607.62,0.32915308]
[1743534542823,1.02,608.33,607.62,0.32915308]
[1743534543228,0.28622658,608.29,607.62,0.32915308]
[1743534545930,1.02,608.33,607.62,0.32915308]
[1743534546332,0.28622187,608.28,607.62,0.32915308]
[1743534548834,1.058,608.35,607.62,0.32915308]
[1743534549338,1.08521952,608.34,607.62,0.32915308]
[1743534551640,1.039,608.33,607.62,0.32915308]
[1743534552239,0.28621481,608.32,607.62,0.32915308]
[1743534554743,1.039,608.33,607.62,0.32915308]
[1743534554943,0.974,608.32,607.62,0.32915308]
[1743534555239,0.28622069,608.31,607.62,0.32915308]
[1743534555946,0.916,608.3,607.62,0.32915308]
[1743534558346,0.28622658,608.29,607.62,0.32915308]
[1743534560742,0.916,608.3,607.62,0.32915308]
[1743534561142,0.286236,608.28,607.62,0.32915308]
[1743534563851,0.916,608.3,607.62,0.32915308]
[1743534564252,0.28623247,608.27,607.62,0.32915308]
[1743534566856,0.916,608.3,607.62,0.32915308]
[1743534567256,0.28622423,608.26,607.62,0.32915308]
[1743534568453,1.033,608.25,607.62,0.32915308]
[1743534570258,0.28625483,608.24,607.62,0.32915308]
[1743534570961,1.321,608.23,607.62,0.32915308]
[1743534572056,1.321,608.23,607.27,1.22645171]
[1743534573159,0.28629369,608.22,607.27,1.22645171]
[1743534575159,0.28629369,608.22,607.17,1.22645171]
[1743534575361,0.28629369,608.22,607.18,0.32939161]
[1743534575863,1.321,608.23,607.18,0.32939161]
[1743534576365,0.28630547,608.21,607.18,0.32939161]
[1743534578664,1.012,608.2,607.18,0.32939161]
[1743534579470,0.28631607,608.19,607.18,0.32939161]
[1743534581969,1.012,608.2,607.18,0.32939161]
[1743534582169,0.28631607,608.18,607.18,0.32939161]
[1743534582570,0.28631607,608.18,607.26,1.22645171]
[1743534584666,0.28631607,608.18,607.23,1.22645171]
[1743534584866,1.012,608.2,607.23,1.22645171]
[1743534585269,0.28630193,608.17,607.23,1.22645171]
[1743534586573,0.864,608.16,607.23,1.22645171]
[1743534587168,0.864,608.16,607.18,1.55584332]
[1743534588566,0.864,608.16,607.18,0.32939161]
[1743534590773,1.0,608.15,607.18,0.32939161]
[1743534591174,0.28631607,608.14,607.18,0.32939161]
[1743534593877,1.0,608.15,607.22,1.22645171]
[1743534594377,0.28631489,608.13,607.22,1.22645171]
[1743534595677,0.28631489,608.13,607.24,1.22645171]
[1743534596877,1.159,608.14,607.24,1.22645171]
[1743534597178,0.28630782,608.12,607.24,1.22645171]
[1743534597380,0.28630782,608.12,607.29,1.22645171]
[1743534599879,1.159,608.14,607.32,1.22645171]
[1743534600279,0.2862984,608.13,607.32,1.22645171]
[1743534601274,1.184,608.12,607.32,1.22645171]
[1743534602276,1.184,608.12,607.33,1.22645171]
[1743534603675,1.184,608.12,607.31,1.22645171]
[1743534608075,1.163,608.11,607.34,1.22645171]
[1743534609280,0.28632078,608.1,607.34,1.22645171]
[1743534610077,0.28632078,608.1,607.18,0.32939161]
[1743534610078,0.28632078,608.1,607.4,1.22645171]
[1743534611776,1.163,608.11,607.4,1.22645171]
[1743534612282,0.28631371,608.1,607.32,1.22645171]
[1743534614887,1.163,608.11,607.27,1.22645171]
[1743534615185,0.28632313,608.09,607.27,1.22645171]
[1743534617190,0.28632313,608.09,607.25,1.22645171]
[1743534617890,0.81,608.1,607.25,1.22645171]
[1743534618289,0.28633256,608.08,607.25,1.22645171]
[1743534618696,0.28633256,608.08,607.21,1.22645171]
[1743534619290,1.20133256,608.08,607.21,1.22645171]
[1743534621095,0.915,608.08,607.2,1.22645171]
[1743534621297,0.28633963,608.07,607.2,1.22645171]
[1743534622195,1.16733963,608.07,607.2,1.22645171]
[1743534623198,1.16733963,608.07,607.18,0.32939161]
[1743534624300,0.881,608.07,607.18,0.32939161]
[1743534626703,0.881,608.07,607.22,1.22645171]
[1743534626904,0.881,608.07,607.23,0.32936449]
[1743534629604,0.881,608.07,607.31,1.22645171]
[1743534634406,0.881,608.07,607.33,1.22645171]
[1743534634803,1.762,608.07,607.33,1.22645171]
[1743534635202,2.834,608.07,607.33,1.22645171]
[1743534636109,2.834,608.07,607.31,1.22645171]
[1743534638309,2.834,608.07,607.32,1.22645171]
[1743534640005,2.834,608.07,607.23,0.32936449]
[1743534640006,2.834,608.07,607.37,1.22645171]
[1743534642413,2.834,608.07,607.36,1.22645171]
[1743534644209,2.834,608.07,607.35,1.22645171]
[1743534646612,2.834,608.07,607.3,1.22645171]
[1743534648612,3.828,608.07,607.3,1.22645171]
[1743534651015,3.828,608.07,607.29,1.22645171]
[1743534652715,3.828,608.07,607.3,1.22645171]
[1743534654615,3.828,608.07,607.35,1.22645171]
[1743534656417,3.828,608.07,607.42,1.22645171]
[1743534657913,3.828,608.07,607.45,1.22645171]
[1743534660221,3.828,608.07,607.48,1.22645171]
[1743534663122,0.286309,608.06,607.36,1.22645171]
[1743534665922,1.875,608.07,607.23,0.32936449]
[1743534666224,0.28632313,608.05,607.23,0.32936449]
[1743534666722,1.106,608.04,607.23,0.32936449]
[1743534667323,0.841,608.03,607.23,0.32936449]
[1743534669225,0.28634552,608.02,607.23,0.32936449]
[1743534671831,0.841,608.03,607.23,0.32936449]
[1743534672128,0.28637733,608.01,607.23,0.32936449]
[1743534674929,0.793,608.02,607.23,0.32936449]
[1743534675430,0.28638793,608.0,607.23,0.32936449]
[1743534677830,0.793,608.02,607.23,0.32936449]
[1743534678223,0.28639972,607.99,607.23,0.32936449]
[1743534679029,0.986,607.98,607.23,0.32936449]
[1743534681332,0.28640915,607.97,607.23,0.32936449]
[1743534681833,1.028,607.96,607.23,0.32936449]
[1743534687236,0.28641268,607.95,607.23,0.32936449]
[1743534690139,1.028,607.96,607.23,0.32936449]
[1743534690339,0.28640915,607.94,607.23,0.32936449]
[1743534692936,1.028,607.96,607.23,0.32936449]
[1743534693341,0.28641386,607.93,607.23,0.32936449]
[1743534694843,1.072,607.92,607.23,0.32936449]
[1743534702653,1.061,607.91,607.23,0.32936449]
[1743534710860,1.061,607.91,607.33,1.22645171]
[1743534711655,1.034,607.9,607.33,1.22645171]
[1743534712058,1.034,607.9,607.23,0.32936449]
[1743534714964,0.993,607.89,607.23,0.32936449]
[1743534717365,1.162,607.88,607.23,0.32936449]
[1743534719964,1.162,607.88,607.29,1.22645171]
[1743534720169,1.162,607.88,607.3,0.32932652]
[1743534721170,0.713,607.87,607.3,0.32932652]
[1743534722075,0.713,607.87,607.3,1.55577823]
[1743534724876,0.713,607.87,607.3,0.32932652]
[1743534729281,0.772,607.86,607.3,0.32932652]
[1743534733386,0.772,607.86,607.32,1.22645171]
[1743534733686,0.772,607.86,607.33,0.32931025]
[1743534735885,0.772,607.86,607.37,1.22645171]
[1743534736186,0.772,607.86,607.38,0.32928315]
[1743534745788,0.772,607.86,607.53,1.22645171]
[1743534747993,0.772,607.86,607.38,0.32928315]
[1743534750493,0.772,607.86,607.41,1.22645171]
[1743534753294,0.772,607.86,607.38,0.32928315]
[1743534757305,2.298,607.88,607.38,0.32928315]
[1743534759904,3.312,607.88,607.38,0.32928315]
[1743534778423,3.312,607.88,607.39,1.22645171]
[1743534778829,1.014,607.88,607.39,1.22645171]
[1743534779728,1.014,607.88,607.38,0.32928315]
[1743534781730,1.873,607.88,607.38,0.32928315]
[1743534782424,2.906,607.88,607.38,0.32928315]
[1743534782631,2.906,607.88,607.39,1.22645171]
[1743534788127,2.906,607.88,607.38,0.32928315]
[1743534810748,3.776,607.88,607.38,0.32928315]
[1743534882206,3.776,607.88,607.39,1.22645171]
[1743534882602,0.28633374,608.11,607.39,1.22645171]
[1743534884605,0.28633374,608.11,607.38,0.32928315]
[1743534885008,3.86747299,609.32,607.38,0.32928315]
[1743534885307,1.129,608.1,607.38,0.32928315]
[1743534885807,0.736,608.09,607.38,0.32928315]
[1743534886405,1.869,608.08,607.38,0.32928315]
[1743534902525,1.869,608.08,607.39,1.22645171]
[1743534908031,1.869,608.08,607.4,1.22645171]
[1743534908333,3.076,608.08,607.4,1.22645171]
[1743534908735,3.81,608.08,607.4,1.22645171]
[1743534909835,3.81,608.08,607.38,0.32928315]
[1743534911834,3.81,608.08,607.38,1.55573486]
[1743534914141,3.81,608.08,607.46,1.22645171]
[1743534916036,3.81,608.08,607.45,1.22645171]
[1743534917444,3.81,608.08,607.43,1.22645171]
[1743534918544,3.81,608.08,607.44,0.32925062]
[1743534922949,3.81,608.08,607.49,1.22645171]
[1743534924554,3.81,608.08,607.5,1.22645171]
[1743534927956,3.81,608.08,607.51,0.32921268]
[1743534930759,3.81,608.08,607.67,1.22645171]
[1743534930958,3.81,608.08,607.68,0.32912058]
[1743534931261,1.207,608.08,607.68,0.32912058]
[1743534935360,2.525,608.18,607.68,0.32912058]
[1743534938771,3.48,608.18,607.68,0.32912058]
[1743534957987,3.48,608.18,607.75,1.22645171]
[1743534958182,2.694,608.18,607.75,1.22645171]
[1743534958685,1.739,608.18,607.75,1.22645171]
[1743534959388,1.739,608.18,607.83,1.22645171]
[1743534959787,0.988,608.18,607.83,1.22645171]
[1743534961587,0.988,608.18,607.86,1.22645171]
[1743534963386,0.988,608.18,607.72,1.22645171]
[1743534965592,0.988,608.18,607.76,1.22645171]
[1743534967391,0.988,608.18,607.71,1.22645171]
[1743534970194,0.866,608.33,607.71,1.22645171]
[1743534973196,2.037,608.33,607.71,1.22645171]
[1743534973397,2.037,608.33,607.74,1.22645171]
[1743534975694,2.037,608.33,607.75,1.22645171]
[1743534977696,2.037,608.33,607.91,1.22645171]
[1743534980498,2.037,608.33,607.93,1.22645171]
[1743534982797,2.037,608.33,608.02,1.22645171]
[1743534983996,1.171,608.33,608.02,1.22645171]
[1743534985192,1.171,608.33,607.93,1.22645171]
[1743534987701,1.171,608.33,607.91,1.22645171]
[1743534989098,1.171,608.33,607.93,1.22645171]
[1743534991099,1.171,608.33,607.96,1.22645171]
[1743534992898,1.171,608.33,607.97,1.22645171]
[1743534995001,1.171,608.33,607.82,1.22645171]
[1743534995203,1.171,608.33,607.83,0.32903936]
[1743534997401,1.171,608.33,607.84,1.22645171]
[1743534997607,1.171,608.33,607.85,0.32902854]
[1743534999806,1.171,608.33,607.93,1.22645171]
[1743535001807,1.171,608.33,607.99,1.22645171]
[1743535003507,1.171,608.33,607.93,1.22645171]
[1743535006704,1.171,608.33,607.94,1.22645171]
[1743535008711,1.171,608.33,607.85,0.32902854]
[1743535013008,1.171,608.33,607.9,1.22645171]
[1743535015206,1.171,608.33,607.85,0.32902854]
[1743535016810,1.171,608.33,607.65,1.22645171]
[1743535017708,1.171,608.33,607.6,1.22645171]
[1743535019611,1.171,608.33,607.5,1.22645171]
[1743535019910,1.171,608.33,607.51,0.32921268]
[1743535024507,2.283,608.33,607.51,0.32921268]
[1743535029519,0.28626425,608.32,607.51,0.32921268]
[1743535030019,1.30926425,608.32,607.51,0.32921268]
[1743535032119,1.023,608.32,607.51,0.32921268]
[1743535032723,0.28625954,608.31,607.51,0.32921268]
[1743535033726,0.812,608.3,607.51,0.32921268]
[1743535045237,1.236,608.29,607.51,0.32921268]
[1743535046340,0.819,608.28,607.51,0.32921268]
[1743535047438,0.28625483,608.27,607.51,0.32921268]
[1743535050143,0.819,608.28,607.51,0.32921268]
[1743535050441,0.2862619,608.26,607.51,0.32921268]
[1743535053142,0.806,608.25,607.51,0.32921268]
[1743535053643,1.0922619,608.25,607.51,0.32921268]
[1743535054345,0.982,608.24,607.51,0.32921268]
[1743535056438,0.28626778,608.23,607.51,0.32921268]
[1743535059141,0.982,608.24,607.51,0.32921268]
[1743535059542,0.28629369,608.22,607.51,0.32921268]
[1743535060547,1.308,608.21,607.51,0.32921268]
[1743535062448,0.2862984,608.2,607.51,0.32921268]
[1743535065144,1.308,608.21,607.51,0.32921268]
[1743535065546,0.28629604,608.19,607.51,0.32921268]
[1743535068250,1.308,608.21,607.51,0.32921268]
[1743535068445,0.28629722,608.18,607.51,0.32921268]
[1743535071153,1.308,608.21,607.51,0.32921268]
[1743535071549,0.28629487,608.17,607.51,0.32921268]
[1743535074255,1.308,608.21,607.51,0.32921268]
[1743535074455,0.28629369,608.16,607.51,0.32921268]
[1743535077159,0.982,608.24,607.51,0.32921268]
[1743535077357,0.28630076,608.15,607.51,0.32921268]
[1743535077752,0.982,608.24,607.51,0.32921268]
[1743535078559,1.06429604,608.23,607.51,0.32921268]
[1743535079458,0.972,608.22,607.51,0.32921268]
[1743535080355,0.28628545,608.21,607.51,0.32921268]
[1743535083059,0.972,608.22,607.51,0.32921268]
[1743535083762,1.12529133,608.21,607.51,0.32921268]
[1743535084657,1.12529133,608.21,607.33,1.22894273]
[1743535086062,0.839,608.21,607.33,1.22894273]
[1743535086459,0.28630311,608.2,607.33,1.22894273]
[1743535087462,0.28630311,608.2,607.27,1.22894273]
[1743535088858,0.28630311,608.2,607.26,1.22894273]
[1743535089164,0.839,608.21,607.26,1.22894273]
[1743535089361,0.28631136,608.19,607.26,1.22894273]
[1743535089863,0.30233878,608.18,607.26,1.22894273]
[1743535090457,0.30233878,608.18,607.15,1.22894273]
[1743535090458,0.30233878,608.18,607.33,1.22894273]
[1743535092364,0.58864425,608.17,607.33,1.22894273]
[1743535092564,0.30233878,608.16,607.41,1.22894273]
[1743535093162,0.28630547,608.17,607.41,1.22894273]
[1743535093967,1.412,608.16,607.41,1.22894273]
[1743535094360,1.412,608.16,607.36,1.22894273]
[1743535095667,0.28630782,608.15,607.27,1.22894273]
[1743535096868,0.869,608.14,607.27,1.22894273]
[1743535097969,0.869,608.14,607.04,1.22894273]
[1743535098168,0.869,608.14,607.05,0.32946215]
[1743535098566,0.2863573,608.13,607.05,0.32946215]
[1743535100973,1.094,608.12,607.05,0.32946215]
[1743535101474,0.28635965,608.11,607.05,0.32946215]
[1743535104070,1.094,608.12,607.05,0.32946215]
[1743535104667,0.28638204,608.11,607.05,0.32946215]
[1743535105275,0.28638204,608.11,607.05,1.55840488]
[1743535107074,1.094,608.12,607.05,1.55840488]
[1743535107484,0.28637261,608.1,607.05,1.55840488]
[1743535107687,0.28637261,608.1,607.07,1.22894273]
[1743535109485,0.28637261,608.1,607.12,1.22894273]
[1743535110089,1.094,608.12,607.12,1.22894273]
[1743535110686,0.28635023,608.11,607.12,1.22894273]
[1743535111088,0.745,608.1,607.13,0.32941874]
[1743535111490,0.745,608.1,607.2,1.22894273]
[1743535113687,0.28633138,608.09,607.2,1.22894273]
[1743535113890,0.28633138,608.09,607.23,1.22894273]
[1743535115895,0.28633138,608.09,607.21,1.22894273]
[1743535116088,0.745,608.1,607.21,1.22894273]
[1743535116494,0.2863302,608.09,607.21,1.22894273]
[1743535118297,0.2863302,608.09,607.13,0.32941874]
[1743535119091,0.745,608.1,607.13,0.32941874]
[1743535119491,0.2863573,608.08,607.13,0.32941874]
[1743535121499,1.3033573,608.08,607.13,0.32941874]
[1743535122095,1.017,608.08,607.13,0.32941874]
[1743535122494,0.28635376,608.07,607.13,0.32941874]
[1743535125100,1.017,608.08,607.13,0.32941874]
[1743535125698,0.28635376,608.07,607.13,0.32941874]
[1743535127302,0.28635376,608.07,607.23,1.22894273]
[1743535128100,1.394,608.07,607.23,1.22894273]
[1743535128501,0.28634198,608.06,607.23,1.22894273]
[1743535128996,0.28634198,608.06,607.13,0.32941874]
[1743535128997,0.28634198,608.06,607.16,1.22894273]
[1743535130703,0.28634198,608.06,607.18,1.22894273]
[1743535131101,1.394,608.07,607.18,1.22894273]
[1743535131604,0.28635847,608.06,607.18,1.22894273]
[1743535131797,0.28635847,608.06,607.17,1.22894273]
[1743535134201,1.394,608.07,607.17,1.22894273]
[1743535134404,0.28635965,608.05,607.17,1.22894273]
[1743535137003,0.28635965,608.05,607.2,1.22894273]
[1743535137210,1.394,608.07,607.2,1.22894273]
[1743535137405,0.28635612,608.04,607.2,1.22894273]
[1743535138408,0.28635612,608.04,607.15,1.22894273]
[1743535140211,1.394,608.07,607.15,1.22894273]
[1743535140608,0.28636201,608.03,607.15,1.22894273]
[1743535141009,0.28636201,608.03,607.14,1.22894273]
[1743535143111,1.394,608.07,607.14,1.22894273]
[1743535143512,0.28636319,608.02,607.14,1.22894273]
[1743535145212,0.28636319,608.02,607.15,1.22894273]
[1743535146114,1.094,608.12,607.15,1.22894273]
[1743535146511,0.28635612,608.01,607.15,1.22894273]
[1743535146716,1.111,608.11,607.15,1.22894273]
[1743535147013,1.3513679,608.0,607.15,1.22894273]
[1743535147215,1.065,608.0,607.15,1.22894273]
[1743535147416,1.065,608.0,607.18,1.22894273]
[1743535147614,0.28641032,607.99,607.18,1.22894273]
[1743535148514,0.30246086,607.98,607.18,1.22894273]
[1743535148917,0.979,607.97,607.18,1.22894273]
[1743535149112,0.30246086,607.96,607.13,0.32941874]
[1743535149511,0.28641032,607.96,607.13,0.32941874]
[1743535152117,0.979,607.97,607.13,0.32941874]
[1743535152417,0.28642683,607.95,607.13,0.32941874]
[1743535155122,0.969,607.96,607.13,0.32941874]
[1743535155323,0.28642447,607.94,607.13,0.32941874]
[1743535158323,0.969,607.96,607.13,0.32941874]
[1743535158624,0.286428,607.93,607.13,0.32941874]
[1743535161225,0.969,607.96,607.13,0.32941874]
[1743535161626,0.28642918,607.92,607.13,0.32941874]
[1743535164028,0.953,607.91,607.13,0.32941874]
[1743535164423,1.23943861,607.91,607.13,0.32941874]
[1743535167233,1.124,607.9,606.87,1.22894273]
[1743535167429,1.40493991,607.9,606.87,1.22894273]
[1743535168028,1.40493991,607.9,606.86,1.22894273]
[1743535169627,1.40493991,607.9,606.71,1.22894273]
[1743535169829,1.40493991,607.9,606.72,0.32964135]
[1743535171727,1.08,607.89,606.72,0.32964135]
[1743535173426,0.28648342,607.88,606.72,0.32964135]
[1743535174731,0.28648342,607.88,606.72,0.31623928]
[1743535176032,0.28648342,607.88,606.77,1.22894273]
[1743535176331,1.04,607.87,606.78,0.32960875]
[1743535176532,1.32648224,607.87,606.78,0.32960875]
[1743535179132,1.04,607.87,606.78,0.32960875]
[1743535179534,0.28647634,607.86,606.78,0.32960875]
[1743535179727,0.28647634,607.86,606.8,1.22894273]
[1743535179932,0.28647634,607.86,606.81,0.32959245]
[1743535180532,0.922,607.85,606.81,0.32959245]
[1743535181736,0.922,607.85,606.83,1.22894273]
[1743535181935,0.922,607.85,606.84,0.32957616]
[1743535182438,0.28647045,607.84,606.84,0.32957616]
[1743535184236,0.28647045,607.84,606.91,1.22894273]
[1743535185135,0.922,607.85,606.91,1.22894273]
[1743535185635,0.28646101,607.83,606.91,1.22894273]
[1743535186336,0.28646101,607.83,606.95,1.22894273]
[1743535187834,0.28646101,607.83,606.93,1.22894273]
[1743535188238,0.922,607.85,606.93,1.22894273]
[1743535188435,0.28644922,607.82,606.93,1.22894273]